bitfinex/quotes_ETHUSD_20250220
["timestamp","ask_amount","ask_price","bid_price","bid_amount"]
[1740068124255,5.23,2726.4,2725.8,4.66708159]
[1740068124256,3.66804,2726.3,2725.8,4.66708159]
[1740068124428,5.23,2726.4,2726.0,3.66836]
[1740068124624,5.23,2726.4,2725.9,0.46670816]
[1740068124826,5.23,2726.4,2725.8,0.5742069]
[1740068125025,5.23,2726.4,2726.3,3.66797]
[1740068125226,5.23,2726.4,2726.2,4.4288]
[1740068125462,5.23,2726.4,2726.2,4.42873]
[1740068125953,5.23,2726.4,2726.2,4.42871]
[1740068126125,5.23,2726.4,2726.3,4.110841]
[1740068126335,5.23,2727.0,2726.3,0.442871]
[1740068126533,5.23,2727.2,2726.9,3.66704]
[1740068126714,5.23,2727.2,2726.7,0.7607]
[1740068126921,0.8029,2727.6,2727.1,3.66686]
[1740068127130,0.8029,2727.6,2726.9,3.66713]
[1740068127131,5.23,2727.5,2726.9,3.66713]
[1740068127420,8.89645,2727.5,2726.9,3.66713]
[1740068127621,8.89645,2727.5,2726.5,3.96558]
[1740068127622,3.66691,2727.1,2726.5,3.96558]
[1740068127931,5.23,2727.0,2726.5,3.96558]
[1740068128120,5.23,2727.0,2726.7,3.66741]
[1740068128323,5.23,2727.0,2726.7,4.40069164]
[1740068128545,5.23,2727.0,2726.7,0.73328164]
[1740068128746,5.23,2726.9,2726.8,0.7544]
[1740068129050,3.66639,2727.5,2726.8,4.4217]
[1740068129253,3.66692,2727.1,2726.7,0.73328164]
[1740068129461,3.66717,2726.9,2726.7,0.73328164]
[1740068129754,5.23,2727.0,2726.7,0.73328164]
[1740068130759,5.23,2727.0,2726.8,3.6673]
[1740068130919,5.23,2727.0,2726.9,4.89991816]
[1740068133981,5.23,2727.4,2727.3,3.66663]
[1740068134283,5.23,2727.9,2727.7,3.66602]
[1740068134484,5.23,2727.9,2727.5,4.46168]
[1740068134775,5.23,2727.9,2727.5,4.46172]
[1740068134974,5.23,2727.9,2727.5,1.271372]
[1740068135179,5.23,2727.9,2727.8,3.66595]
[1740068135333,5.23,2727.9,2727.5,4.46167]
[1740068135334,5.23,2727.9,2727.7,3.66606]
[1740068135681,5.23,2727.9,2727.5,4.4617]
[1740068135860,8.89589,2727.9,2727.5,0.7954]
[1740068136162,8.89589,2727.9,2727.2,4.74538]
[1740068136326,8.89589,2727.9,2727.4,3.66642]
[1740068136523,5.23,2727.9,2727.5,3.66634]
[1740068136748,6.48613,2727.9,2727.4,0.719145]
[1740068136955,6.48613,2727.9,2727.2,0.297]
[1740068136956,4.41732,2727.7,2727.2,0.297]
[1740068137261,4.41732,2727.7,2727.0,0.297]
[1740068137262,3.66645,2727.5,2727.0,0.297]
[1740068137463,3.66622,2727.6,2727.1,4.38565787]
[1740068137963,3.66622,2727.6,2726.7,3.9643]
[1740068137964,3.66677,2727.2,2726.7,3.9643]
[1740068138125,5.23,2727.1,2726.7,3.9643]
[1740068138535,5.23,2727.1,2726.8,3.6672]
[1740068138832,5.23,2727.1,2726.9,0.72613292]
[1740068139063,0.5575,2727.5,2726.7,0.297]
[1740068139271,5.23,2727.0,2726.5,8.24]
[1740068139475,3.66757,2726.6,2726.5,8.24]
[1740068139731,3.66771,2726.5,2726.0,3.66835]
[1740068140150,3.66771,2726.5,2725.8,5.0344069]
[1740068140151,3.66791,2726.4,2725.8,1.3658069]
[1740068140381,5.23,2726.3,2725.8,1.8973374]
[1740068140577,3.66813,2726.2,2725.8,1.1057374]
[1740068140726,3.66851,2725.9,2725.8,1.30870811]
[1740068140931,5.23,2726.3,2725.8,1.30870811]
[1740068140932,3.66832,2726.1,2725.8,1.30870811]
[1740068141472,3.66812,2726.2,2725.8,1.30870811]
[1740068141671,3.66807,2726.3,2725.8,1.30870811]
[1740068141832,0.55,2726.4,2725.8,1.30870811]
[1740068142035,0.55,2726.4,2725.8,4.97726811]
[1740068142364,3.66839,2726.0,2725.8,1.30870811]
[1740068142571,3.66839,2726.0,2725.8,0.5742069]
[1740068142572,3.66851,2725.9,2725.8,0.5742069]
[1740068142737,4.21851,2725.9,2725.8,0.5742069]
[1740068144298,5.02621,2725.9,2725.8,0.5742069]
[1740068144599,3.47672,2725.4,2725.2,8.3904846]
[1740068144887,0.55,2725.7,2725.2,8.3904846]
[1740068145094,3.66901,2725.6,2725.2,8.3904846]
[1740068145659,2.05319556,2725.9,2725.2,8.3904846]
[1740068145854,0.7927,2725.9,2725.2,8.3904846]
[1740068146178,3.66843,2726.0,2725.4,3.66909]
[1740068146379,3.66832,2726.1,2725.6,0.7744]
[1740068146583,3.66849,2726.0,2725.6,0.7744]
[1740068146764,3.66852,2725.9,2725.4,0.7744]
[1740068147102,3.66846,2726.0,2725.5,3.66899]
[1740068147273,3.0,2726.3,2725.6,0.74211215]
[1740068147474,3.66851,2725.9,2725.6,0.74211215]
[1740068147679,3.66847,2726.0,2725.6,0.74211215]
[1740068147883,3.66865,2725.8,2725.4,0.7744]
[1740068148357,3.66865,2725.8,2725.3,3.9653]
[1740068148358,0.7752,2725.9,2725.3,0.296]
[1740068148555,3.66906,2725.5,2725.3,0.296]
[1740068148997,3.66878,2725.7,2725.3,0.296]
[1740068149174,0.55,2726.0,2725.2,0.1514846]
[1740068149175,1.142078,2725.6,2725.2,0.1514846]
[1740068149370,7.33826,2725.5,2725.2,0.1514846]
[1740068149573,3.66912,2725.5,2725.2,0.1514846]
[1740068149985,3.66868,2725.8,2725.2,3.8209246]
[1740068150294,3.66913,2725.5,2725.2,0.1514846]
[1740068150489,7.33822,2725.5,2725.2,0.1514846]
[1740068150684,3.66909,2725.5,2725.2,0.1514846]
[1740068151089,3.6692,2725.4,2725.2,0.1514846]
[1740068151388,3.66932,2725.3,2725.2,0.1514846]
[1740068152074,4.035999,2725.5,2725.2,0.1514846]
[1740068152459,3.66929,2725.4,2725.2,0.1514846]
[1740068153592,4.035999,2725.5,2725.2,0.1514846]
[1740068153796,3.66885,2725.7,2725.2,0.1514846]
[1740068154000,4.44379,2725.9,2725.4,3.6691]
[1740068154161,3.66885,2725.7,2725.2,0.1514846]
[1740068154363,3.66902,2725.6,2725.2,0.1514846]
[1740068154567,3.66931,2725.4,2725.2,0.1514846]
[1740068154781,3.66895,2725.6,2725.2,0.1514846]
[1740068157308,3.66932,2725.3,2725.2,0.1514846]
[1740068157473,0.366926,2725.4,2725.2,0.1514846]
[1740068157965,7.33822,2725.5,2725.2,0.1514846]
[1740068158166,3.66908,2725.5,2725.2,0.1514846]
[1740068158667,3.94326667,2725.7,2725.2,0.1514846]
[1740068158867,3.91035563,2726.1,2725.2,0.1514846]
[1740068159108,3.66878,2725.7,2725.2,0.1514846]
[1740068159273,3.66899,2725.6,2725.2,0.1514846]
[1740068160010,3.66913,2725.5,2725.2,0.1514846]
[1740068160184,4.402717,2725.6,2725.2,0.1514846]
[1740068160390,3.66925,2725.4,2725.2,0.1514846]
[1740068160715,3.66932,2725.3,2725.2,0.1514846]
[1740068161462,4.46342,2725.3,2725.2,0.1514846]
[1740068161687,6.21771556,2725.3,2725.2,0.1514846]
[1740068162886,9.21771556,2725.3,2725.2,0.1514846]
[1740068165204,8.66771556,2725.3,2725.2,0.1514846]
[1740068165371,4.99839556,2725.3,2725.2,0.1514846]
[1740068165709,7.87361556,2725.3,2725.2,0.1514846]
[1740068167381,8.42361556,2725.3,2725.2,0.1514846]
[1740068167588,9.18771556,2725.3,2725.2,0.1514846]
[1740068169390,9.20271556,2725.3,2725.2,0.1514846]
[1740068169791,9.20271556,2725.3,2725.2,4.6e-06]
[1740068170189,9.19521556,2725.3,2725.2,4.6e-06]
[1740068172224,9.20271556,2725.3,2725.2,4.6e-06]
[1740068173989,13.06971556,2725.3,2725.2,4.6e-06]
[1740068174302,9.20271556,2725.3,2725.2,4.6e-06]
[1740068177699,0.7812,2725.8,2725.2,4.6e-06]
[1740068177897,0.7812,2726.1,2725.2,3.6694446]
[1740068178129,6.66877,2725.8,2725.2,4.6e-06]
[1740068178326,3.66878,2725.7,2725.2,4.6e-06]
[1740068178515,3.66878,2725.7,2725.2,3.6694246]
[1740068178712,3.66871,2725.8,2725.2,4.6e-06]
[1740068178920,3.66886,2725.7,2725.2,4.6e-06]
[1740068179235,3.66918,2725.4,2725.2,4.6e-06]
[1740068179616,3.66932,2725.3,2725.2,4.6e-06]
[1740068180211,4.40317,2725.3,2725.2,4.6e-06]
[1740068180737,4.95317,2725.3,2725.2,4.6e-06]
[1740068181139,4.96067,2725.3,2725.2,4.6e-06]
[1740068181543,8.74427,2725.3,2725.2,4.6e-06]
[1740068182607,8.75177,2725.3,2725.2,4.6e-06]
[1740068183245,7.95317,2725.3,2725.2,4.6e-06]
[1740068183415,7.21932,2725.3,2725.2,4.6e-06]
[1740068183733,7.23432,2725.3,2725.2,4.6e-06]
[1740068183941,7.23432,2725.3,2724.1,9.0489]
[1740068183942,3.67069,2724.3,2724.1,9.0489]
[1740068184122,3.67044,2724.5,2724.1,9.0489]
[1740068184650,3.67076,2724.3,2724.1,8.243]
[1740068184821,3.6708,2724.2,2724.1,8.243]
[1740068185144,3.6708,2724.2,2723.8,0.8192]
[1740068185321,3.67109,2724.0,2723.8,0.8192]
[1740068185722,3.67044,2724.5,2723.9,3.67112]
[1740068185940,3.67044,2724.5,2723.9,0.74609647]
[1740068186316,3.67067,2724.3,2723.9,0.74609647]
[1740068186746,3.0,2724.4,2723.9,4.41729647]
[1740068187297,3.67073,2724.3,2723.9,0.74609647]
[1740068187560,3.67039,2724.5,2723.9,4.41728647]
[1740068187561,6.67058,2724.4,2723.9,4.41728647]
[1740068187766,3.67032,2724.6,2724.1,0.8267]
[1740068188339,3.67054,2724.4,2724.1,0.8267]
[1740068189024,3.67026,2724.6,2724.1,0.8267]
[1740068189545,3.67026,2724.6,2724.1,4.49752]
[1740068189745,3.67046,2724.5,2724.1,0.8267]
[1740068189950,3.67073,2724.3,2724.1,0.8267]
[1740068190122,3.6708,2724.2,2724.1,0.8267]
[1740068190327,1.06101791,2724.6,2724.1,0.8267]
[1740068190537,3.6708,2724.2,2724.1,0.8267]
[1740068190939,3.6708,2724.2,2723.9,0.74609647]
[1740068191334,3.67068,2724.3,2723.9,0.74609647]
[1740068191551,3.67088,2724.2,2723.9,0.74609647]
[1740068191919,3.67103,2724.1,2723.8,0.827]
[1740068192119,0.367088,2724.2,2723.8,0.827]
[1740068192353,7.34153,2724.3,2723.8,5.23772761]
[1740068192859,3.67082,2724.2,2723.8,1.56644761]
[1740068193362,3.67073,2724.3,2723.8,1.56644761]
[1740068193752,3.67115,2724.0,2723.8,0.827]
[1740068193951,0.367115,2723.9,2723.8,0.827]
[1740068194144,3.55,2724.3,2723.8,0.827]
[1740068194354,3.67133,2723.9,2723.5,0.7571]
[1740068194561,3.67127,2723.9,2723.5,0.7571]
[1740068194729,3.67127,2723.9,2723.5,4.42884]
[1740068195330,3.67127,2723.9,2723.5,0.7571]
[1740068195629,3.67114,2724.0,2723.6,0.72864136]
[1740068196346,3.67127,2723.9,2723.6,0.72864136]
[1740068197379,7.9707,2724.3,2723.6,0.72864136]
[1740068197531,3.67127,2723.9,2723.6,0.72864136]
[1740068198450,3.67108,2724.0,2723.6,0.72864136]
[1740068198652,3.67105,2724.1,2723.6,0.72864136]
[1740068198961,4.3,2724.3,2723.6,0.72864136]
[1740068198962,3.67107,2724.0,2723.6,0.72864136]
[1740068199340,7.34225,2724.0,2723.6,0.72864136]
[1740068199565,3.67107,2724.0,2723.6,0.72864136]
[1740068199938,3.67103,2724.1,2723.6,4.40018136]
[1740068200424,4.83571791,2724.6,2723.6,4.40018136]
[1740068200630,3.67109,2724.0,2723.6,4.40018136]
[1740068200791,3.67109,2724.0,2723.6,0.72864136]
[1740068201412,3.6709,2724.2,2723.6,0.72864136]
[1740068201580,3.67095,2724.1,2723.6,0.72864136]
[1740068201776,3.0,2724.4,2723.6,0.72864136]
[1740068201977,3.67067,2724.3,2723.7,3.67136]
[1740068202352,3.67088,2724.2,2723.7,7.34281]
[1740068202477,3.67099,2724.1,2723.6,0.72864136]
[1740068202683,3.67107,2724.0,2723.6,0.72864136]
[1740068202882,5.23,2723.9,2723.6,0.72864136]
[1740068204188,8.90127,2723.9,2723.6,0.72864136]
[1740068206120,3.67147,2723.7,2723.6,0.72864136]
[1740068206297,3.67181,2723.5,2723.1,0.7789]
[1740068206500,5.23,2723.8,2723.1,0.7789]
[1740068206829,5.23,2723.8,2723.6,4.42952]
[1740068207033,5.23,2724.0,2723.8,3.67122]
[1740068207221,5.23,2724.2,2723.6,0.758]
[1740068207478,6.05471897,2724.2,2723.6,0.758]
[1740068207638,3.671,2724.1,2723.6,4.42955]
[1740068207843,3.671,2724.1,2723.6,4.42954]
[1740068208084,6.05471897,2724.2,2723.7,3.67136]
[1740068208288,5.23,2724.2,2723.9,3.67111]
[1740068208783,5.23,2724.2,2723.8,3.67133]
[1740068209185,5.23,2724.2,2723.6,4.42957]
[1740068209373,3.671,2724.1,2723.6,4.42957]
[1740068209572,5.23,2724.2,2723.6,0.758]
[1740068209767,5.23,2724.2,2723.7,3.6714]
[1740068209977,8.9008,2724.2,2723.7,3.67139]
[1740068210284,8.9008,2724.2,2723.7,7.3428]
[1740068210438,5.23,2724.2,2723.7,4.51087]
[1740068210640,8.9008,2724.2,2723.7,4.51095]
[1740068210890,12.57169,2724.2,2723.7,4.51095]
[1740068211076,8.9008,2724.2,2723.7,4.51095]
[1740068211283,5.23,2724.2,2723.7,4.51095]
[1740068211488,5.23,2724.2,2723.8,3.67127]
[1740068211653,5.23,2724.2,2723.8,3.67126]
[1740068211858,5.23,2724.2,2724.1,0.74804625]
[1740068212273,3.67097,2724.1,2723.6,4.72351]
[1740068212473,3.67097,2724.1,2723.6,8.39503]
[1740068212672,3.67097,2724.1,2723.6,4.72351]
[1740068213107,5.23,2724.2,2724.0,0.74422331]
[1740068213585,3.67093,2724.1,2724.0,0.74422331]
[1740068214205,5.23,2724.2,2724.0,0.74422331]
[1740068215410,8.90088,2724.2,2724.0,0.74422331]
[1740068215565,3.67093,2724.1,2724.0,0.74422331]
[1740068216365,5.23,2724.2,2724.0,0.74422331]
[1740068216573,8.90086,2724.2,2724.0,0.74422331]
[1740068216784,3.67117,2724.0,2723.6,1.052]
[1740068217179,3.67093,2724.1,2723.6,4.7236]
[1740068217397,6.120086,2724.2,2723.9,0.75039882]
[1740068217589,5.23,2724.2,2723.9,0.75039882]
[1740068217908,5.23,2724.2,2723.9,4.42156882]
[1740068218209,5.23,2724.3,2723.9,4.42156882]
[1740068218500,5.23,2724.3,2723.9,4.42152882]
[1740068218727,8.90066,2724.3,2723.9,4.42152882]
[1740068218926,5.23,2724.3,2723.9,0.75039882]
[1740068219143,5.23,2724.3,2723.9,4.42157882]
[1740068219303,5.23,2724.5,2724.1,3.67093]
[1740068219613,5.23,2724.5,2724.2,3.67075]
[1740068219832,8.90038,2724.6,2724.1,4.48593]
[1740068219982,3.67042,2724.5,2724.1,4.48593]
[1740068220186,5.23,2724.6,2724.1,0.815]
[1740068220400,3.6704,2724.5,2724.1,0.815]
[1740068220808,5.23,2724.6,2724.3,3.67054]
[1740068221024,8.90028,2724.6,2724.1,0.815]
[1740068221202,3.67048,2724.5,2724.1,0.815]
[1740068221409,3.67055,2724.4,2724.1,0.815]
[1740068221590,8.90028,2724.6,2724.1,0.815]
[1740068221792,3.67096,2724.1,2723.9,1.04439882]
[1740068222116,3.67115,2724.0,2723.5,3.67174]
[1740068222335,3.67115,2724.0,2722.5,3.8245646]
[1740068222336,3.6716,2723.7,2723.1,4.42318]
[1740068222487,3.67181,2723.5,2723.1,0.7509]
[1740068222687,3.67181,2723.5,2723.0,8.246]
[1740068222934,3.67197,2723.4,2723.0,8.246]
[1740068223245,3.67197,2723.4,2723.2,0.74269561]
[1740068223246,8.90201,2723.3,2723.2,0.74269561]
[1740068223535,3.67228,2723.1,2723.0,8.246]
[1740068223732,6.0355,2723.3,2723.1,4.39258161]
[1740068223733,5.23,2723.3,2723.1,4.39258161]
[1740068223936,5.23,2723.3,2723.0,8.246]
[1740068224233,5.23,2723.3,2723.1,0.8033]
[1740068224436,5.23,2723.3,2723.2,3.67215]
[1740068225136,5.23,2723.8,2723.3,3.67199]
[1740068225335,5.23,2723.8,2723.1,4.47558]
[1740068225544,0.5575,2723.8,2723.0,8.97565284]
[1740068225723,3.67196,2723.4,2723.0,8.97565284]
[1740068225921,4.116056,2723.3,2723.0,8.97565284]
[1740068226109,0.7677,2723.5,2723.0,12.64794284]
[1740068226306,4.43944,2723.5,2723.0,8.97565284]
[1740068226534,0.7677,2723.5,2723.0,8.97565284]
[1740068226736,3.67201,2723.3,2723.0,8.97565284]
[1740068226938,0.7677,2723.5,2723.0,8.97565284]
[1740068227091,3.67228,2723.1,2723.0,8.97565284]
[1740068227286,3.67283,2722.7,2722.5,0.1514846]
[1740068227548,5.23,2722.6,2722.5,0.1514846]
[1740068228044,5.23,2722.6,2722.5,0.89083968]
[1740068228223,8.90295,2722.6,2722.5,0.89083968]
[1740068228536,6.487578,2722.6,2722.5,0.89083968]
[1740068228704,10.160528,2722.6,2722.5,0.1514846]
[1740068230338,5.23,2722.6,2722.5,3.8245746]
[1740068230512,5.23,2722.6,2722.5,0.1514846]
[1740068230711,5.23,2722.6,2722.5,3.8245746]
[1740068230922,5.23,2722.6,2722.5,4.6573746]
[1740068231541,1.08576225,2723.9,2723.1,0.8328]
[1740068231705,5.23,2723.5,2723.2,3.67207]
[1740068231905,5.23,2723.5,2723.1,0.8328]
[1740068232105,5.23,2723.6,2723.1,4.50503]
[1740068232544,8.90164,2723.6,2723.1,0.8328]
[1740068233110,3.67174,2723.5,2723.1,0.8328]
[1740068233442,8.90164,2723.6,2722.9,0.294]
[1740068233443,3.67197,2723.4,2722.9,1.0857]
[1740068233846,5.23,2723.6,2723.1,3.67219]
[1740068234017,3.67175,2723.5,2723.1,0.73403268]
[1740068234345,3.67215,2723.2,2723.1,0.73403268]
[1740068234531,3.67215,2723.2,2722.5,0.4454846]
[1740068234532,3.67249,2723.0,2722.5,0.4454846]
[1740068234732,3.67249,2723.0,2722.5,4.1185546]
[1740068235041,3.67249,2723.0,2722.7,0.74933423]
[1740068235546,5.23,2723.1,2722.7,0.74933423]
[1740068235747,8.90231,2723.1,2722.7,0.74933423]
[1740068235943,5.23,2723.1,2722.7,1.23610811]
[1740068236245,5.23,2723.1,2722.9,3.67245]
[1740068236448,5.23,2723.1,2723.0,3.67242]
[1740068237112,5.23,2723.6,2723.5,3.67174]
[1740068237315,5.23,2724.0,2723.5,4.44734]
[1740068237597,5.23,2724.0,2723.6,3.67149]
[1740068237765,3.67121,2723.9,2723.5,0.7756]
[1740068238103,7.3425,2723.9,2723.5,0.7756]
[1740068238404,5.23,2724.0,2723.6,3.6715]
[1740068238763,5.23,2724.0,2723.5,1.24974]
[1740068238976,5.23,2724.0,2723.5,0.7756]
[1740068239174,5.23,2724.0,2723.7,0.72880059]
[1740068240173,8.90108,2724.0,2723.7,0.72880059]
[1740068240374,5.23,2724.0,2723.7,0.72880059]
[1740068240581,3.67134,2723.8,2723.6,0.294]
[1740068240888,0.7997,2723.9,2723.6,0.294]
[1740068241049,8.90107,2724.0,2723.6,0.294]
[1740068241251,8.90107,2724.0,2723.6,1.01515455]
[1740068241451,5.23,2724.0,2723.6,1.48384201]
[1740068241653,5.23,2724.0,2723.6,5.15538201]
[1740068241853,8.90108,2724.0,2723.6,1.48384201]
[1740068242085,3.67147,2723.7,2723.2,0.8269]
[1740068242388,3.67146,2723.8,2723.3,3.67199]
[1740068242687,8.90112,2724.0,2723.3,3.67194]
[1740068242888,3.67137,2723.8,2723.3,3.67194]
[1740068243686,3.67137,2723.8,2723.5,0.75328265]
[1740068244191,5.23,2723.7,2723.6,4.47741]
[1740068244348,5.23,2723.7,2723.6,11.27588532]
[1740068244548,5.23,2724.7,2723.8,0.7933]
[1740068244788,5.23,2724.7,2724.4,0.7933]
[1740068245086,0.7538,2725.1,2724.4,0.7933]
[1740068245087,3.67026,2724.6,2724.5,0.294]
[1740068245485,3.67039,2724.5,2724.4,0.294]
[1740068245655,3.67056,2724.4,2724.1,1.0873]
[1740068245989,3.67033,2724.6,2724.1,4.75817]
[1740068246189,3.67003,2724.8,2724.2,0.73726348]
[1740068246365,3.67003,2724.8,2724.4,3.67052]
[1740068246566,3.67003,2724.8,2724.2,4.40804348]
[1740068246765,3.67003,2724.8,2724.3,3.67054]
[1740068246950,3.6702,2724.7,2724.2,0.73726348]
[1740068247153,3.67003,2724.8,2724.2,0.73726348]
[1740068247356,3.67035,2724.6,2724.2,0.73726348]
[1740068247802,3.6702,2724.7,2724.2,0.73726348]
[1740068248085,5.23,2725.0,2724.2,0.73726348]
[1740068248086,3.67046,2724.5,2724.2,0.73726348]
[1740068248289,8.89974,2725.0,2724.2,0.73726348]
[1740068248290,3.67008,2724.8,2724.2,0.73726348]
[1740068248478,3.67012,2724.7,2724.2,0.73726348]
[1740068248679,3.67022,2724.7,2724.2,0.73726348]
[1740068248877,3.67022,2724.7,2724.2,4.40796348]
[1740068249100,5.23,2725.0,2724.3,3.67066]
[1740068249420,5.23,2724.6,2724.5,4.44229]
[1740068250160,5.23,2724.6,2724.5,10.56915532]
[1740068250663,5.23,2724.6,2724.5,7.44229]
[1740068252508,5.23,2724.6,2724.5,0.7719]
[1740068252668,5.23,2724.6,2724.5,0.293]
[1740068253294,8.90026,2724.6,2724.5,0.293]
[1740068253663,5.23,2724.6,2724.5,0.293]
[1740068254697,5.23,2724.6,2724.5,3.96339]
[1740068254932,5.23,2724.6,2724.5,5.51928]
[1740068255067,5.23,2724.6,2724.5,8.51928]
[1740068255268,5.23,2724.6,2724.5,5.51928]
[1740068256362,5.23,2725.0,2724.9,4.43135]
[1740068256901,4.45188,2725.6,2725.1,3.66958]
[1740068257099,5.23,2725.5,2725.1,3.66958]
[1740068257305,5.23,2725.5,2725.2,3.66937]
[1740068257662,5.23,2725.5,2724.9,0.7615]
[1740068257663,5.23,2725.5,2725.4,3.66918]
[1740068257866,5.23,2725.5,2725.0,3.66972]
[1740068257867,5.23,2725.5,2725.2,3.66935]
[1740068258602,5.23,2725.5,2725.2,7.33871]
[1740068258795,5.23,2725.5,2725.3,3.66931]
[1740068258999,5.23,2725.5,2725.4,3.66918]
[1740068259203,5.23,2725.5,2725.4,5.185629]
[1740068259404,5.23,2725.5,2725.4,1.516449]
[1740068259709,5.23,2725.8,2725.7,3.66878]
[1740068259883,8.89804,2726.3,2725.7,3.66878]
[1740068260092,5.23,2726.2,2725.8,3.66863]
[1740068260420,5.23,2726.2,2725.9,1.150363]
[1740068260895,5.23,2726.2,2726.0,3.66829]
[1740068261095,5.23,2726.3,2726.1,0.293]
[1740068261891,5.23,2726.3,2726.2,3.6681]
[1740068262106,5.23,2726.3,2726.1,0.293]
[1740068262281,5.23,2726.3,2726.1,0.767477]
[1740068264418,5.23,2726.3,2726.2,0.74859435]
[1740068265516,5.23,2726.3,2726.2,0.19859435]
[1740068266420,8.89797,2726.3,2726.2,0.19859435]
[1740068266618,3.66833,2726.1,2725.7,0.293]
[1740068267123,4.45891,2726.2,2725.7,0.293]
[1740068267532,3.66836,2726.1,2725.7,0.293]
[1740068267736,3.66836,2726.1,2725.6,0.8024]
[1740068268030,7.33711,2725.9,2725.7,0.73265587]
[1740068268241,3.66864,2725.8,2725.7,0.73265587]
[1740068268437,3.66864,2725.8,2724.9,8.243]
[1740068268438,3.66929,2725.4,2724.9,8.243]
[1740068268608,3.66966,2725.1,2724.9,8.243]
[1740068268823,5.23,2725.3,2724.9,8.243]
[1740068268824,8.89935,2725.3,2725.0,0.75175267]
[1740068269026,3.66949,2725.2,2725.0,0.75175267]
[1740068269406,3.66959,2725.1,2725.0,0.75175267]
[1740068269738,4.48139,2725.1,2724.9,8.243]
[1740068269943,8.89972,2725.0,2724.9,8.243]
[1740068270762,3.67031,2724.6,2724.5,0.74673582]
[1740068271036,5.23,2724.6,2724.5,0.74673582]
[1740068271404,8.90026,2724.6,2724.5,0.74673582]
[1740068271814,8.90026,2724.6,2724.5,0.75873582]
[1740068272419,5.23,2724.6,2724.5,0.75873582]
[1740068272613,5.23,2724.6,2724.5,4.42912582]
[1740068272817,5.23,2724.6,2724.5,5.9958904]
[1740068273630,5.23,2724.6,2724.5,0.75873582]
[1740068274251,5.23,2724.6,2724.5,0.012]
[1740068274820,8.90026,2724.6,2724.5,0.012]
[1740068275023,5.23,2724.6,2724.5,0.012]
[1740068275924,8.90026,2724.6,2724.5,0.012]
[1740068276253,9.37959299,2724.6,2724.5,0.012]
[1740068277222,9.92959299,2724.6,2724.5,0.012]
[1740068277429,10.72009299,2724.6,2724.5,0.012]
[1740068279346,10.17009299,2724.6,2724.5,0.012]
[1740068279548,9.69076,2724.6,2724.5,0.012]
[1740068280574,9.97101611,2724.6,2724.5,0.012]
[1740068281559,10.53601611,2724.6,2724.5,0.012]
[1740068281725,13.53601611,2724.6,2724.5,0.012]
[1740068281919,15.63293113,2724.6,2724.5,0.012]
[1740068282126,15.08293113,2724.6,2724.5,0.012]
[1740068284269,5.23,2724.6,2724.5,0.012]
[1740068284765,8.90026,2724.6,2724.5,0.012]
[1740068285629,5.23,2724.6,2724.5,0.012]
[1740068286472,8.90026,2724.6,2724.5,0.012]
[1740068287669,5.23,2724.6,2724.5,0.012]
[1740068288352,8.90026,2724.6,2724.5,0.012]
[1740068289166,5.23,2724.6,2724.5,0.012]
[1740068289669,5.23,2724.6,2724.5,3.68239]
[1740068289880,0.8101,2725.3,2724.9,3.66982]
[1740068290039,5.23,2725.2,2724.7,3.67003]
[1740068290239,5.23,2725.2,2724.8,3.66991]
[1740068290463,5.23,2725.2,2724.5,1.21265]
[1740068290651,3.66987,2724.9,2724.5,0.8444]
[1740068290852,0.792,2725.1,2724.7,0.73863614]
[1740068291351,5.23,2725.2,2724.8,3.66999]
[1740068291547,5.23,2725.2,2724.7,0.73863614]
[1740068291751,5.23,2725.2,2724.8,3.66997]
[1740068291953,8.89946,2725.2,2724.7,8.07869614]
[1740068292258,5.23,2725.2,2724.7,4.40865614]
[1740068292460,5.23,2725.2,2724.9,3.66975]
[1740068292635,5.23,2725.2,2725.1,0.8291]
[1740068292839,5.23,2725.2,2725.1,4.49869]
[1740068293040,3.66892,2725.6,2725.1,4.49869]
[1740068293270,3.66914,2725.5,2725.0,3.66965]
[1740068293641,3.66912,2725.5,2725.0,3.66965]
[1740068294148,3.66912,2725.5,2724.8,0.8291]
[1740068294353,3.66897,2725.6,2725.1,3.66957]
[1740068294774,3.66891,2725.6,2725.0,3.66964]
[1740068294954,8.89886,2725.7,2725.0,3.66964]
[1740068295161,3.66907,2725.5,2724.9,3.66983]
[1740068295365,3.66907,2725.5,2725.2,0.74905292]
[1740068295569,3.66922,2725.4,2725.2,0.74905292]
[1740068295742,4.01559168,2725.5,2724.8,0.8291]
[1740068296060,3.66959,2725.1,2724.6,3.9632]
[1740068296260,3.66972,2725.0,2724.9,0.73486994]
[1740068296450,3.66995,2724.9,2724.5,0.826]
[1740068296649,3.67017,2724.7,2724.5,0.012]
[1740068296854,5.23,2724.6,2724.5,0.012]
[1740068297690,8.90026,2724.6,2724.5,0.012]
[1740068297901,13.28297568,2724.6,2724.5,0.012]
[1740068298059,17.62227568,2724.6,2724.5,0.012]
[1740068298587,14.496591,2724.6,2724.5,0.012]
[1740068298990,13.931591,2724.6,2724.5,0.012]
[1740068299291,5.23,2724.6,2724.5,0.012]
[1740068299519,5.23,2724.8,2724.5,0.012]
[1740068299789,5.23,2724.7,2724.6,4.49046]
[1740068300794,5.23,2725.2,2724.8,3.66993]
[1740068300955,5.23,2725.1,2724.9,3.66984]
[1740068301160,5.23,2725.1,2725.0,4.798124]
[1740068301459,3.12568468,2726.2,2725.6,3.66883]
[1740068301460,5.23,2726.0,2725.6,3.66883]